fUST/lending_fUST_20250906
["ID","MTS","AMOUNT","RATE_DAILY","PERIOD"]
[383720711,1757099437804,-500.0,0.00013697,2]
[383720712,1757099437812,-500.0,0.00013697,2]
[383720713,1757099437821,-500.0,0.00013697,2]
[383720714,1757099437830,-500.0,0.00013697,2]
[383720715,1757099437839,-500.0,0.00013697,2]
[383720716,1757099437847,-500.0,0.00013697,2]
[383720717,1757099437856,-500.0,0.00013697,2]
[383720718,1757099437866,-500.0,0.00013697,2]
[383720719,1757099437875,-500.0,0.00013697,2]
[383720720,1757099437884,-500.0,0.00013697,2]
[383720721,1757099437891,-500.0,0.00013697,2]
[383720722,1757099437899,-500.0,0.00013697,2]
[383720723,1757099437906,-500.0,0.00013697,2]
[383720724,1757099437916,-500.0,0.00013697,2]
[383720725,1757099437925,-500.0,0.00013697,2]
[383720726,1757099437934,-211.94299082,0.00013697,2]
[383720727,1757099437944,-500.0,0.00013697,2]
[383720728,1757099437953,-500.0,0.00013697,2]
[383720729,1757099437963,-500.0,0.00013697,2]
[383720730,1757099437972,-500.0,0.00013697,2]
[383720731,1757099437981,-500.0,0.00013697,2]
[383720732,1757099437990,-500.0,0.00013697,2]
[383720733,1757099438000,-500.0,0.00013697,2]
[383720734,1757099438009,-480.0,0.00013698,2]
[383720735,1757099438018,-50.65584326,0.00013698,2]
[383720736,1757099438030,-429.34415674,0.00013698,2]
[383720737,1757099438040,-480.0,0.00013698,2]
[383720738,1757099438049,-2033.6274723,0.00013698,2]
[383720739,1757099438058,-480.0,0.00013698,2]
[383720740,1757099438068,-159.58707423,0.00013698,2]
[383720741,1757099438077,-480.0,0.00013698,2]
[383720742,1757099438087,-480.0,0.00013698,2]
[383720743,1757099438096,-480.0,0.00013698,2]
[383720744,1757099438106,-480.0,0.00013698,2]
[383720745,1757099438118,-485.35424664,0.00013698,2]
[383720746,1757099438127,-480.0,0.00013698,2]
[383720747,1757099438136,-24964.2475706,0.00013698,2]
[383720748,1757099438145,-480.0,0.00013698,2]
[383720749,1757099438154,-208.98692899,0.00013698,2]
[383720750,1757099438163,-480.0,0.00013698,2]
[383720751,1757099438173,-480.0,0.00013698,2]
[383720752,1757099438183,-480.0,0.00013698,2]
[383720753,1757099438192,-480.0,0.00013698,2]
[383720754,1757099438201,-480.0,0.00013698,2]
[383720755,1757099438210,-480.0,0.00013698,2]
[383720756,1757099438219,-480.0,0.00013698,2]
[383720757,1757099438388,-779.28,0.00013698,2]
[383720758,1757099438399,-480.0,0.00013698,2]
[383720759,1757099438409,-480.0,0.00013698,2]
[383720760,1757099438419,-480.0,0.00013698,2]
[383720761,1757099438430,-480.0,0.00013698,2]
[383720762,1757099438440,-480.0,0.00013698,2]
[383720763,1757099438449,-480.0,0.00013698,2]
[383720764,1757099438459,-480.0,0.00013698,2]
[383720765,1757099438468,-511.93921379,0.00013698,2]
[383720766,1757099438478,-480.0,0.00013698,2]
[383720767,1757099438487,-596.14,0.00013698,2]
[383720768,1757099438497,-480.0,0.00013698,2]
[383720769,1757099438506,-480.0,0.00013698,2]
[383720770,1757099438516,-480.0,0.00013698,2]
[383720771,1757099438526,-480.0,0.00013698,2]
[383720772,1757099438535,-492.16,0.00013698,2]
[383720773,1757099438544,-480.0,0.00013698,2]
[383720774,1757099438553,-480.0,0.00013698,2]
[383720775,1757099438562,-480.0,0.00013698,2]
[383720776,1757099438572,-172.80523181,0.00013698,2]
[383720777,1757099438581,-480.0,0.00013698,2]
[383720778,1757099438590,-196.19594064,0.00013698,2]
[383720779,1757099438601,-480.0,0.00013698,2]
[383720780,1757099438612,-480.0,0.00013698,2]
[383720781,1757099438622,-480.0,0.00013698,2]
[383720782,1757099438633,-897.93,0.00013698,2]
[383720783,1757099438644,-480.0,0.00013698,2]
[383720784,1757099438654,-480.0,0.00013698,2]
[383720785,1757099438664,-480.0,0.00013698,2]
[383720786,1757099438677,-480.0,0.00013698,2]
[383720787,1757099438687,-480.0,0.00013698,2]
[383720788,1757099438697,-480.0,0.00013698,2]
[383720789,1757099438708,-480.0,0.00013698,2]
[383720790,1757099438719,-480.0,0.00013698,2]
[383720791,1757099438729,-2037.88,0.00013698,2]
[383720792,1757099438739,-1288.33,0.00013698,2]
[383720793,1757099438747,-480.0,0.00013698,2]
[383720794,1757099438754,-1053.52,0.00013698,2]
[383720795,1757099438762,-480.0,0.00013698,2]
[383720796,1757099438769,-699.54,0.00013698,2]
[383720797,1757099438777,-480.0,0.00013698,2]
[383720798,1757099438785,-170.93,0.00013698,2]
[383720799,1757099438792,-480.0,0.00013698,2]
[383720800,1757099438801,-480.0,0.00013698,2]
[383720801,1757099438810,-480.0,0.00013698,2]
[383720802,1757099438819,-585.41891932,0.00013698,2]
[383720803,1757099438829,-480.0,0.00013698,2]
[383720804,1757099438838,-480.0,0.00013698,2]
[383720805,1757099438847,-480.0,0.00013698,2]
[383720806,1757099438857,-480.0,0.00013698,2]
[383720807,1757099438866,-480.0,0.00013698,2]
[383720808,1757099438876,-480.0,0.00013698,2]
[383720809,1757099438886,-481.606264,0.00013698,2]
[383720810,1757099438895,-480.0,0.00013698,2]
[383720811,1757099438905,-565.8,0.00013698,2]
[383720812,1757099438914,-480.0,0.00013698,2]
[383720813,1757099438923,-480.0,0.00013698,2]
[383720814,1757099438932,-480.0,0.00013698,2]
[383720815,1757099438941,-480.0,0.00013698,2]
[383720816,1757099438951,-480.0,0.00013698,2]
[383720817,1757099438959,-480.0,0.00013698,2]
[383720818,1757099438969,-480.0,0.00013698,2]
[383720819,1757099438978,-480.0,0.00013698,2]
[383720820,1757099438987,-480.0,0.00013698,2]
[383720821,1757099438996,-778.91,0.00013698,2]
[383720822,1757099439006,-495.93,0.00013698,2]
[383720823,1757099439015,-968.49,0.00013698,2]
[383720824,1757099439025,-480.0,0.00013698,2]
[383720825,1757099439035,-480.0,0.00013698,2]
[383720826,1757099439045,-480.0,0.00013698,2]
[383720827,1757099439055,-480.0,0.00013698,2]
[383720828,1757099439064,-1000.0,0.00013698,2]
[383720829,1757099439073,-480.0,0.00013698,2]
[383720830,1757099439082,-517.40648513,0.00013698,2]
[383720831,1757099439091,-481.2,0.00013698,2]
[383720832,1757099439101,-480.0,0.00013698,2]
[383720833,1757099439111,-535.52868387,0.00013698,2]
[383720834,1757099439121,-480.0,0.00013698,2]
[383720835,1757099439130,-480.0,0.00013698,2]
[383720836,1757099439141,-575.31,0.00013698,2]
[383720837,1757099439150,-377.00473543,0.00013698,2]
[383720838,1757099439159,-480.0,0.00013698,2]
[383720839,1757099439169,-480.0,0.00013698,2]
[383720840,1757099439179,-480.0,0.00013698,2]
[383720841,1757099439188,-480.0,0.00013698,2]
[383720842,1757099439198,-480.0,0.00013698,2]
[383720843,1757099439207,-480.0,0.00013698,2]
[383720844,1757099439217,-480.0,0.00013698,2]
[383720845,1757099439227,-480.0,0.00013698,2]
[383720846,1757099439236,-480.0,0.00013698,2]
[383720847,1757099439245,-480.0,0.00013698,2]
[383720848,1757099439255,-500.0,0.00013698,2]
[383720849,1757099439264,-500.0,0.00013698,2]
[383720850,1757099439273,-500.0,0.00013698,2]
[383720851,1757099439282,-500.0,0.00013698,2]
[383720852,1757099439292,-500.0,0.00013698,2]
[383720853,1757099439301,-500.0,0.00013698,2]
[383720854,1757099439311,-480.0,0.00013698,2]
[383720855,1757099439321,-399.54090219,0.00013698,2]
[383720856,1757099439330,-480.0,0.00013698,2]
[383720857,1757099439339,-480.0,0.00013698,2]
[383720858,1757099439348,-480.0,0.00013698,2]
[383720859,1757099439358,-480.0,0.00013698,2]
[383720860,1757099439367,-480.0,0.00013698,2]
[383720861,1757099439377,-480.0,0.00013698,2]
[383720862,1757099439386,-480.0,0.00013698,2]
[383720863,1757099439395,-480.0,0.00013698,2]
[383720864,1757099439405,-658.89,0.00013698,2]
[383720865,1757099439414,-480.0,0.00013698,2]
[383720866,1757099439423,-480.0,0.00013698,2]
[383720867,1757099439432,-992.1,0.00013698,2]
[383720868,1757099439442,-480.0,0.00013698,2]
[383720869,1757099439451,-480.0,0.00013698,2]
[383720870,1757099439460,-480.0,0.00013698,2]
[383720871,1757099439470,-1140.48,0.00013698,2]
[383720872,1757099439480,-710.02,0.00013698,2]
[383720873,1757099439489,-480.0,0.00013698,2]
[383720874,1757099439499,-480.0,0.00013698,2]
[383720875,1757099439509,-480.0,0.00013698,2]
[383720876,1757099439519,-871.55,0.00013698,2]
[383720877,1757099439528,-480.0,0.00013698,2]
[383720879,1757099439537,-480.0,0.00013698,2]
[383720881,1757099439547,-480.0,0.00013698,2]
[383720883,1757099439556,-480.0,0.00013698,2]
[383720885,1757099439566,-480.0,0.00013698,2]
[383720886,1757099439575,-480.0,0.00013698,2]
[383720887,1757099439585,-480.0,0.00013698,2]
[383720888,1757099439594,-480.0,0.00013698,2]
[383720889,1757099439604,-829.43,0.00013698,2]
[383720890,1757099439613,-690.93,0.00013698,2]
[383720891,1757099439623,-480.0,0.00013698,2]
[383720892,1757099439633,-510.47,0.00013698,2]
[383720893,1757099439644,-1861.7,0.00013698,2]
[383720894,1757099439658,-480.0,0.00013698,2]
[383720895,1757099439668,-480.0,0.00013698,2]
[383720896,1757099439677,-2809.74,0.00013698,2]
[383720897,1757099439687,-480.0,0.00013698,2]
[383720898,1757099439699,-794.96,0.00013698,2]
[383720899,1757099439708,-480.0,0.00013698,2]
[383720900,1757099439718,-4045.68625078,0.00013698,2]
[383720901,1757099439729,-639.26,0.00013698,2]
[383720902,1757099439740,-809.73,0.00013698,2]
[383720903,1757099439750,-480.0,0.00013698,2]
[383720904,1757099439760,-480.0,0.00013698,2]
[383720905,1757099439770,-1750.16,0.00013698,2]
[383720907,1757099439780,-2295.67,0.00013698,2]
[383720909,1757099439789,-480.0,0.00013698,2]
[383720911,1757099439798,-3357.38,0.00013698,2]
[383720913,1757099439808,-1129.67,0.00013698,2]
[383720915,1757099439817,-480.0,0.00013698,2]
[383720917,1757099439826,-480.0,0.00013698,2]
[383720919,1757099439836,-480.0,0.00013698,2]
[383720922,1757099439846,-480.0,0.00013698,2]
[383720923,1757099439855,-480.0,0.00013698,2]
[383720926,1757099439866,-480.0,0.00013698,2]
[383720928,1757099439875,-1936.22,0.00013698,2]
[383720930,1757099439884,-625.19061869,0.00013698,2]
[383720932,1757099439894,-480.0,0.00013698,2]
[383720934,1757099439904,-480.0,0.00013698,2]
[383720936,1757099439913,-480.0,0.00013698,2]
[383720939,1757099439924,-2939.24,0.00013698,2]
[383720941,1757099439933,-480.0,0.00013698,2]
[383720943,1757099439942,-763.03,0.00013698,2]
[383720944,1757099439952,-480.0,0.00013698,2]
[383720947,1757099439962,-1926.79,0.00013698,2]
[383720949,1757099439971,-530.03,0.00013698,2]
[383720951,1757099439980,-480.0,0.00013698,2]
[383720953,1757099439990,-480.0,0.00013698,2]
[383720954,1757099439999,-1136.55,0.00013698,2]
[383720957,1757099440008,-480.0,0.00013698,2]
[383720959,1757099440017,-766.21,0.00013698,2]
[383720961,1757099440026,-714.06,0.00013698,2]
[383720963,1757099440035,-480.0,0.00013698,2]
[383720965,1757099440044,-480.0,0.00013698,2]
[383720967,1757099440053,-404.36120556,0.00013698,2]
[383720969,1757099440063,-480.0,0.00013698,2]
[383720970,1757099440072,-480.0,0.00013698,2]
[383720973,1757099440081,-9741.91,0.00013698,2]
[383720975,1757099440090,-480.0,0.00013698,2]
[383720977,1757099440100,-480.0,0.00013698,2]
[383720978,1757099440110,-480.0,0.00013698,2]
[383720981,1757099440119,-480.0,0.00013698,2]
[383720982,1757099440129,-804.09,0.00013698,2]
[383720984,1757099440138,-629.48,0.00013698,2]
[383720987,1757099440148,-444.04604287,0.00013698,2]
[383720989,1757099440159,-480.0,0.00013698,2]
[383720991,1757099440168,-3895.81,0.00013698,2]
[383720992,1757099440177,-480.0,0.00013698,2]
[383720995,1757099440187,-188.64,0.00013698,2]
[383720996,1757099440196,-480.0,0.00013698,2]
[383720997,1757099440205,-1564.21,0.00013698,2]
[383720998,1757099440215,-536.06729541,0.00013698,2]
[383720999,1757099440225,-480.0,0.00013698,2]
[383721000,1757099440234,-756.39,0.00013698,2]
[383721001,1757099440243,-5062.56,0.00013698,2]
[383721002,1757099440252,-480.0,0.00013698,2]
[383721003,1757099440261,-5453.14,0.00013698,2]
[383721004,1757099440270,-480.0,0.00013698,2]
[383721005,1757099440279,-480.0,0.00013698,2]
[383721006,1757099440288,-480.0,0.00013698,2]
[383721007,1757099440297,-766.18,0.00013698,2]
[383721008,1757099440306,-480.0,0.00013698,2]
[383721009,1757099440316,-361.76560957,0.00013698,2]
[383721010,1757099440325,-656.6,0.00013698,2]
[383721011,1757099440334,-480.0,0.00013698,2]
[383721012,1757099440343,-1460.81,0.00013698,2]
[383721013,1757099440353,-480.0,0.00013698,2]
[383721014,1757099440362,-480.0,0.00013698,2]
[383721015,1757099440371,-480.0,0.00013698,2]
[383721016,1757099440381,-894.06,0.00013698,2]
[383721017,1757099440391,-480.0,0.00013698,2]
[383721018,1757099440401,-2873.28,0.00013698,2]
[383721019,1757099440411,-480.0,0.00013698,2]
[383721020,1757099440422,-480.0,0.00013698,2]
[383721021,1757099440432,-1444.3,0.00013698,2]
[383721023,1757099440442,-480.0,0.00013698,2]
[383721025,1757099440451,-840.57,0.00013698,2]
[383721027,1757099440461,-1057.41,0.00013698,2]
[383721028,1757099440471,-480.0,0.00013698,2]
[383721029,1757099440480,-480.0,0.00013698,2]
[383721030,1757099440490,-480.0,0.00013698,2]
[383721031,1757099440499,-480.0,0.00013698,2]
[383721032,1757099440518,-480.0,0.00013698,2]
[383721033,1757099440529,-1407.36,0.00013698,2]
[383721034,1757099440539,-502.55170817,0.00013698,2]
[383721035,1757099440548,-480.0,0.00013698,2]
[383721036,1757099440559,-481.58576337,0.00013698,2]
[383721037,1757099440570,-480.0,0.00013698,2]
[383721038,1757099440580,-2266.64,0.00013698,2]
[383721039,1757099440590,-480.0,0.00013698,2]
[383721040,1757099440600,-480.0,0.00013698,2]
[383721041,1757099440612,-480.0,0.00013698,2]
[383721042,1757099440622,-546.081315,0.00013699,2]
[383721043,1757099440632,-1700.58523,0.00013699,2]
[383721044,1757099440644,-331.72310793,0.00013771,2]
[383721045,1757099440658,-500.0,0.00013771,2]
[383721046,1757099440670,-194.05296067,0.00013771,2]
[383721047,1757099440681,-500.0,0.00013771,2]
[383721048,1757099440693,-500.0,0.00013771,2]
[383721049,1757099440703,-500.0,0.00013771,2]
[383721050,1757099440713,-500.0,0.00013771,2]
[383721051,1757099440722,-500.0,0.00013771,2]
[383721052,1757099440731,-500.0,0.00013771,2]
[383721053,1757099440741,-283.80615459,0.00013771,2]
[383721054,1757099440750,-500.0,0.00013771,2]
[383721055,1757099440760,-500.0,0.00013771,2]
[383721056,1757099440769,-500.0,0.00013771,2]
[383721057,1757099440779,-500.0,0.00013771,2]
[383721058,1757099440788,-500.0,0.00013771,2]
[383721059,1757099440798,-500.0,0.00013771,2]
[383721060,1757099440807,-500.0,0.00013771,2]
[383721061,1757099440817,-500.0,0.00013771,2]
[383721062,1757099440826,-500.0,0.00013771,2]
[383721063,1757099440836,-500.0,0.00013771,2]
[383721064,1757099440845,-500.0,0.00013771,2]
[383721065,1757099440854,-500.0,0.00013771,2]
[383721066,1757099440863,-500.0,0.00013771,2]
[383721067,1757099440873,-500.0,0.00013771,2]
[383721068,1757099440883,-298.66430821,0.00013771,2]
[383721069,1757099440892,-500.0,0.00013771,2]
[383721070,1757099440901,-645.00913164,0.00013772,2]
[383721071,1757099440911,-370000.0,0.00013772,2]
[383721072,1757099440921,-12422.69384022,0.0001387,2]
[383721073,1757099440931,-300.0,0.0001397,2]
[383721074,1757099440941,-300.0,0.0001397,2]
[383721075,1757099440951,-300.0,0.0001397,2]
[383721076,1757099440960,-300.0,0.0001397,2]
[383721077,1757099440970,-300.0,0.0001397,2]
[383721078,1757099440979,-600.0,0.00013971,2]
[383721079,1757099440988,-480.0,0.00013972,2]
[383721080,1757099440999,-480.0,0.00013972,2]
[383721081,1757099441014,-480.0,0.00013972,2]
[383721082,1757099441029,-480.0,0.00013972,2]
[383721083,1757099441040,-480.0,0.00013972,2]
[383721084,1757099441049,-480.0,0.00013972,2]
[383721085,1757099441059,-480.0,0.00013972,2]
[383721086,1757099441068,-190.86631507,0.00013972,2]
[383721087,1757099441077,-480.0,0.00013972,2]
[383721088,1757099441086,-480.0,0.00013972,2]
[383721089,1757099441096,-456.81308376,0.00013972,2]
[383721090,1757099441105,-480.0,0.00013972,2]
[383721091,1757099441115,-480.0,0.00013972,2]
[383721092,1757099441124,-480.0,0.00013972,2]
[383721093,1757099441134,-376.92,0.00013972,2]
[383721094,1757099441143,-779.28,0.00013972,2]
[383721095,1757099441153,-480.0,0.00013972,2]
[383721096,1757099441162,-480.0,0.00013972,2]
[383721097,1757099441172,-480.0,0.00013972,2]
[383721098,1757099441181,-480.0,0.00013972,2]
[383721099,1757099441191,-480.0,0.00013972,2]
[383721100,1757099441201,-480.0,0.00013972,2]
[383721101,1757099441210,-230.02,0.00013972,2]
[383721102,1757099441219,-176.20761432,0.00013972,2]
[383721103,1757099441229,-480.0,0.00013972,2]
[383721104,1757099441238,-480.0,0.00013972,2]
[383721105,1757099441247,-480.0,0.00013972,2]
[383721106,1757099441256,-480.0,0.00013972,2]
[383721107,1757099441266,-480.0,0.00013972,2]
[383721108,1757099441275,-480.0,0.00013972,2]
[383721109,1757099441285,-481.75474163,0.00013972,2]
[383721110,1757099441294,-480.0,0.00013972,2]
[383721111,1757099441304,-897.93,0.00013972,2]
[383721112,1757099441313,-480.0,0.00013972,2]
[383721113,1757099441323,-480.0,0.00013972,2]
[383721114,1757099441332,-480.0,0.00013972,2]
[383721115,1757099441342,-480.0,0.00013972,2]
[383721116,1757099441351,-480.0,0.00013972,2]
[383721117,1757099441361,-480.0,0.00013972,2]
[383721118,1757099441371,-480.0,0.00013972,2]
[383721119,1757099441380,-2037.88,0.00013972,2]
[383721120,1757099441390,-1288.33,0.00013972,2]
[383721121,1757099441399,-480.0,0.00013972,2]
[383721122,1757099441408,-1053.52,0.00013972,2]
[383721123,1757099441418,-480.0,0.00013972,2]
[383721124,1757099441427,-699.54,0.00013972,2]
[383721125,1757099441437,-480.0,0.00013972,2]
[383721126,1757099441446,-546.82993872,0.00013972,2]
[383721127,1757099441455,-480.0,0.00013972,2]
[383721128,1757099441465,-480.0,0.00013972,2]
[383721129,1757099441474,-480.0,0.00013972,2]
[383721130,1757099441484,-480.0,0.00013972,2]
[383721131,1757099441494,-480.0,0.00013972,2]
[383721132,1757099441504,-480.0,0.00013972,2]
[383721133,1757099441513,-480.0,0.00013972,2]
[383721134,1757099441523,-565.8,0.00013972,2]
[383721135,1757099441532,-480.0,0.00013972,2]
[383721136,1757099441541,-480.0,0.00013972,2]
[383721137,1757099441551,-480.0,0.00013972,2]
[383721138,1757099441561,-480.0,0.00013972,2]
[383721139,1757099441570,-480.0,0.00013972,2]
[383721140,1757099441580,-480.0,0.00013972,2]
[383721141,1757099441589,-480.0,0.00013972,2]
[383721142,1757099441598,-778.91,0.00013972,2]
[383721143,1757099441607,-968.49,0.00013972,2]
[383721144,1757099441616,-480.0,0.00013972,2]
[383721145,1757099441626,-480.0,0.00013972,2]
[383721146,1757099441635,-480.0,0.00013972,2]
[383721147,1757099441646,-480.0,0.00013972,2]
[383721148,1757099441659,-480.0,0.00013972,2]
[383721149,1757099441668,-480.0,0.00013972,2]
[383721150,1757099441678,-480.0,0.00013972,2]
[383721151,1757099441687,-575.31,0.00013972,2]
[383721152,1757099441696,-480.0,0.00013972,2]
[383721153,1757099441706,-480.0,0.00013972,2]
[383721154,1757099441716,-480.0,0.00013972,2]
[383721155,1757099441727,-480.0,0.00013972,2]
[383721156,1757099441880,-480.0,0.00013972,2]
[383721157,1757099441890,-480.0,0.00013972,2]
[383721158,1757099441901,-480.0,0.00013972,2]
[383721159,1757099441910,-480.0,0.00013972,2]
[383721160,1757099441920,-480.0,0.00013972,2]
[383721161,1757099441930,-480.0,0.00013972,2]
[383721162,1757099441939,-480.0,0.00013972,2]
[383721163,1757099441949,-480.0,0.00013972,2]
[383721164,1757099441959,-480.0,0.00013972,2]
[383721165,1757099441969,-480.0,0.00013972,2]
[383721166,1757099441978,-480.0,0.00013972,2]
[383721167,1757099441988,-658.89,0.00013972,2]
[383721168,1757099441997,-480.0,0.00013972,2]
[383721169,1757099442007,-480.0,0.00013972,2]
[383721170,1757099442017,-992.1,0.00013972,2]
[383721171,1757099442027,-480.0,0.00013972,2]
[383721172,1757099442036,-480.0,0.00013972,2]
[383721173,1757099442046,-480.0,0.00013972,2]
[383721174,1757099442055,-1140.48,0.00013972,2]
[383721175,1757099442066,-710.02,0.00013972,2]
[383721176,1757099442075,-480.0,0.00013972,2]
[383721177,1757099442086,-480.0,0.00013972,2]
[383721178,1757099442096,-480.0,0.00013972,2]
[383721179,1757099442106,-871.55,0.00013972,2]
[383721180,1757099442115,-480.0,0.00013972,2]
[383721181,1757099442125,-480.0,0.00013972,2]
[383721182,1757099442135,-243.94819392,0.00013972,2]
[383721184,1757099442144,-480.0,0.00013972,2]
[383721185,1757099442153,-480.0,0.00013972,2]
[383721186,1757099442163,-480.0,0.00013972,2]
[383721187,1757099442172,-829.43,0.00013972,2]
[383721188,1757099442181,-690.93,0.00013972,2]
[383721189,1757099442190,-480.0,0.00013972,2]
[383721190,1757099442199,-510.47,0.00013972,2]
[383721191,1757099442209,-1861.7,0.00013972,2]
[383721192,1757099442219,-480.0,0.00013972,2]
[383721193,1757099442228,-2809.74,0.00013972,2]
[383721194,1757099442237,-480.0,0.00013972,2]
[383721195,1757099442248,-794.96,0.00013972,2]
[383721196,1757099442258,-480.0,0.00013972,2]
[383721197,1757099442270,-639.26,0.00013972,2]
[383721198,1757099442280,-809.73,0.00013972,2]
[383721199,1757099442291,-480.0,0.00013972,2]
[383721200,1757099442302,-1750.16,0.00013972,2]
[383721201,1757099442311,-2295.67,0.00013972,2]
[383721202,1757099442321,-480.0,0.00013972,2]
[383721203,1757099442331,-3357.38,0.00013972,2]
[383721204,1757099442340,-1129.67,0.00013972,2]
[383721205,1757099442350,-480.0,0.00013972,2]
[383721206,1757099442359,-480.0,0.00013972,2]
[383721207,1757099442368,-480.0,0.00013972,2]
[383721208,1757099442378,-480.0,0.00013972,2]
[383721209,1757099442387,-1936.22,0.00013972,2]
[383721210,1757099442398,-480.0,0.00013972,2]
[383721211,1757099442408,-480.0,0.00013972,2]
[383721212,1757099442418,-480.0,0.00013972,2]
[383721213,1757099442427,-480.0,0.00013972,2]
[383721214,1757099442438,-2939.24,0.00013972,2]
[383721215,1757099442448,-480.0,0.00013972,2]
[383721217,1757099442457,-763.03,0.00013972,2]
[383721218,1757099442467,-1926.79,0.00013972,2]
[383721219,1757099442476,-530.03,0.00013972,2]
[383721220,1757099442486,-480.0,0.00013972,2]
[383721221,1757099442496,-1136.55,0.00013972,2]
[383721222,1757099442506,-480.0,0.00013972,2]
[383721223,1757099442515,-766.21,0.00013972,2]
[383721224,1757099442525,-714.06,0.00013972,2]
[383721225,1757099442534,-480.0,0.00013972,2]
[383721226,1757099442545,-480.0,0.00013972,2]
[383721227,1757099442554,-480.0,0.00013972,2]
[383721228,1757099442563,-480.0,0.00013972,2]
[383721229,1757099442573,-9741.91,0.00013972,2]
[383721230,1757099442582,-480.0,0.00013972,2]
[383721231,1757099442592,-480.0,0.00013972,2]
[383721232,1757099442601,-480.0,0.00013972,2]
[383721233,1757099442610,-804.09,0.00013972,2]
[383721235,1757099442619,-629.48,0.00013972,2]
[383721236,1757099442628,-3895.81,0.00013972,2]
[383721237,1757099442638,-480.0,0.00013972,2]
[383721238,1757099442651,-480.0,0.00013972,2]
[383721239,1757099442662,-1564.21,0.00013972,2]
[383721240,1757099442672,-480.0,0.00013972,2]
[383721241,1757099442683,-756.39,0.00013972,2]
[383721242,1757099442694,-5062.56,0.00013972,2]
[383721243,1757099442704,-480.0,0.00013972,2]
[383721244,1757099442713,-5453.14,0.00013972,2]
[383721245,1757099442722,-480.0,0.00013972,2]
[383721246,1757099442735,-480.0,0.00013972,2]
[383721247,1757099442746,-480.0,0.00013972,2]
[383721248,1757099442755,-766.18,0.00013972,2]
[383721249,1757099442765,-656.6,0.00013972,2]
[383721250,1757099442774,-480.0,0.00013972,2]
[383721251,1757099442784,-1460.81,0.00013972,2]
[383721252,1757099442795,-480.0,0.00013972,2]
[383721253,1757099442805,-262.4,0.00013972,2]
[383721254,1757099442815,-894.06,0.00013972,2]
[383721255,1757099442825,-480.0,0.00013972,2]
[383721256,1757099442835,-2873.28,0.00013972,2]
[383721257,1757099442845,-480.0,0.00013972,2]
[383721258,1757099442854,-480.0,0.00013972,2]
[383721259,1757099442863,-1444.3,0.00013972,2]
[383721260,1757099442872,-840.57,0.00013972,2]
[383721261,1757099442883,-1057.41,0.00013972,2]
[383721262,1757099442893,-480.0,0.00013972,2]
[383721263,1757099442903,-480.0,0.00013972,2]
[383721264,1757099442913,-271.41317408,0.00013972,2]
[383721265,1757099442923,-480.0,0.00013972,2]
[383721266,1757099442933,-480.0,0.00013972,2]